[Event "December 19 Early 2023"]
[Site "https://www.chess.com"]
[Date "2023.12.19"]
[Round "5"]
[White "Kezin, Roman"]
[Black "Iskusnyh, Sergei"]
[Result "1-0"]
[Board "46"]
[TimeControl "180+1"]
[WhiteFideId "24124621"]
[BlackFideId "4120027"]
[WhiteElo "2492"]
[BlackElo "2455"]
[WhiteTeam "RUS"]
[BlackTeam "RUS"]
[WhiteClock "0:00:18"]
[BlackClock "0:00:00"]

1. Nf3 {[%clk 0:02:59]}  d5 {[%clk 0:02:59]} 2. g3 {[%clk 0:03:00]}  Nf6 {[%clk 0:02:59]} 3. Bg2 {[%clk 0:03:00]}  c6 {[%clk 0:02:56]} 4. O-O {[%clk 0:03:00]}  Bf5 {[%clk 0:02:57]} 5. c4 {[%clk 0:02:59]}  e6 {[%clk 0:02:56]} 6. d3 {[%clk 0:02:56]}  dxc4 {[%clk 0:02:53]} 7. dxc4 {[%clk 0:02:55]}  Qxd1 {[%clk 0:02:52]} 8. Rxd1 {[%clk 0:02:56]}  Nbd7 {[%clk 0:02:52]} 9. Nc3 {[%clk 0:02:55]}  Be7 {[%clk 0:02:43]} 10. Nh4 {[%clk 0:02:52]}  Bc2 {[%clk 0:02:42]} 11. Rd2 {[%clk 0:02:52]}  Bg6 {[%clk 0:02:41]} 12. Nxg6 {[%clk 0:02:52]}  hxg6 {[%clk 0:02:42]} 13. b3 {[%clk 0:02:53]}  O-O-O {[%clk 0:02:36]} 14. Bb2 {[%clk 0:02:53]}  Nc5 {[%clk 0:02:30]} 15. Rad1 {[%clk 0:02:53]}  Rxd2 {[%clk 0:02:30]} 16. Rxd2 {[%clk 0:02:54]}  Rd8 {[%clk 0:02:30]} 17. Rxd8+ {[%clk 0:02:54]}  Kxd8 {[%clk 0:02:28]} 18. h4 {[%clk 0:02:53]}  Ncd7 {[%clk 0:02:19]} 19. Ne4 {[%clk 0:02:46]}  Nxe4 {[%clk 0:02:18]} 20. Bxe4 {[%clk 0:02:47]}  Bf6 {[%clk 0:02:17]} 21. Ba3 {[%clk 0:02:45]}  Be7 {[%clk 0:02:13]} 22. Bc1 {[%clk 0:02:44]}  Kc7 {[%clk 0:02:04]} 23. Kg2 {[%clk 0:02:39]}  a5 {[%clk 0:01:59]} 24. Bc2 {[%clk 0:02:29]}  a4 {[%clk 0:01:48]} 25. bxa4 {[%clk 0:02:09]}  Nb6 {[%clk 0:01:29]} 26. Bb3 {[%clk 0:02:04]}  c5 {[%clk 0:01:26]} 27. a5 {[%clk 0:01:58]}  Nd7 {[%clk 0:01:23]} 28. Ba4 {[%clk 0:01:59]}  Ne5 {[%clk 0:01:22]} 29. Bb5 {[%clk 0:01:49]}  Nc6 {[%clk 0:01:10]} 30. a6 {[%clk 0:01:44]}  bxa6 {[%clk 0:01:03]} 31. Bxa6 {[%clk 0:01:45]}  Nb4 {[%clk 0:01:04]} 32. Bb5 {[%clk 0:01:45]}  Nxa2 {[%clk 0:01:03]} 33. Bb2 {[%clk 0:01:46]}  f6 {[%clk 0:00:51]} 34. Be8 {[%clk 0:01:45]}  Nb4 {[%clk 0:00:48]} 35. Bxg6 {[%clk 0:01:42]}  Nc6 {[%clk 0:00:46]} 36. f4 {[%clk 0:01:35]}  Kd7 {[%clk 0:00:39]} 37. g4 {[%clk 0:01:28]}  Bd6 {[%clk 0:00:35]} 38. e3 {[%clk 0:01:25]}  Ke7 {[%clk 0:00:34]} 39. Kf3 {[%clk 0:01:13]}  Kf8 {[%clk 0:00:31]} 40. Bc3 {[%clk 0:01:10]}  Bc7 {[%clk 0:00:30]} 41. Be4 {[%clk 0:01:09]}  Na5 {[%clk 0:00:26]} 42. Bd3 {[%clk 0:01:09]}  Nc6 {[%clk 0:00:25]} 43. g5 {[%clk 0:01:01]}  Nb4 {[%clk 0:00:24]} 44. Bb1 {[%clk 0:00:51]}  Kf7 {[%clk 0:00:21]} 45. h5 {[%clk 0:00:49]}  Nc6 {[%clk 0:00:19]} 46. gxf6 {[%clk 0:00:46]}  gxf6 {[%clk 0:00:19]} 47. h6 {[%clk 0:00:46]}  Bd8 {[%clk 0:00:18]} 48. Be4 {[%clk 0:00:34]}  Nb4 {[%clk 0:00:17]} 49. f5 {[%clk 0:00:30]}  exf5 {[%clk 0:00:15]} 50. Bxf5 {[%clk 0:00:30]}  Nc6 {[%clk 0:00:15]} 51. Ke4 {[%clk 0:00:28]}  Ne5 {[%clk 0:00:13]} 52. h7 {[%clk 0:00:21]}  Kg7 {[%clk 0:00:12]} 53. Bxe5 {[%clk 0:00:21]}  fxe5 {[%clk 0:00:11]} 54. Kxe5 {[%clk 0:00:22]}  Bg5 {[%clk 0:00:10]} 55. e4 {[%clk 0:00:21]}  Bf6+ {[%clk 0:00:10]} 56. Kd6 {[%clk 0:00:19]}  Bd4 {[%clk 0:00:08]} 57. e5 {[%clk 0:00:19]}  Be3 {[%clk 0:00:06]} 58. e6 {[%clk 0:00:19]}  Bd4 {[%clk 0:00:07]} 59. e7 {[%clk 0:00:18]}  Kf7 {[%clk 0:00:00]} 60. Kd7 {[%clk 0:00:18]} 1-0

[Event "December 19 Early 2023"]
[Site "https://www.chess.com"]
[Date "2023.12.19"]
[Round "5"]
[White "Klimkowski, Jan"]
[Black "Manukyan, Sargis A."]
[Result "1-0"]
[Board "48"]
[TimeControl "180+1"]
[WhiteFideId "21856222"]
[BlackFideId "13303970"]
[WhiteElo "2324"]
[BlackElo "2186"]
[WhiteTeam "POL"]
[BlackTeam "ARM"]
[WhiteClock "0:00:18"]
[BlackClock "0:00:04"]

1. d4 {[%clk 0:03:00]}  d5 {[%clk 0:02:59]} 2. Nf3 {[%clk 0:02:59]}  Nf6 {[%clk 0:02:58]} 3. g3 {[%clk 0:02:56]}  e6 {[%clk 0:02:58]} 4. Bg2 {[%clk 0:02:56]}  Be7 {[%clk 0:02:59]} 5. O-O {[%clk 0:02:57]}  O-O {[%clk 0:03:00]} 6. c4 {[%clk 0:02:58]}  dxc4 {[%clk 0:03:01]} 7. Qc2 {[%clk 0:02:57]}  a6 {[%clk 0:03:01]} 8. a4 {[%clk 0:02:57]}  c5 {[%clk 0:03:00]} 9. dxc5 {[%clk 0:02:51]}  Bxc5 {[%clk 0:03:01]} 10. Qxc4 {[%clk 0:02:52]}  Nbd7 {[%clk 0:03:00]} 11. Nc3 {[%clk 0:02:51]}  b5 {[%clk 0:03:00]} 12. Qb3 {[%clk 0:02:48]}  Bb7 {[%clk 0:02:35]} 13. axb5 {[%clk 0:02:45]}  axb5 {[%clk 0:02:34]} 14. Rxa8 {[%clk 0:02:38]}  Qxa8 {[%clk 0:02:35]} 15. Qxb5 {[%clk 0:02:39]}  Bc6 {[%clk 0:02:28]} 16. Qd3 {[%clk 0:02:36]}  Rd8 {[%clk 0:02:22]} 17. Qc2 {[%clk 0:02:35]}  Rc8 {[%clk 0:02:21]} 18. Nh4 {[%clk 0:02:31]}  Bxg2 {[%clk 0:02:20]} 19. Nxg2 {[%clk 0:02:32]}  Nd5 {[%clk 0:02:20]} 20. Nf4 {[%clk 0:02:18]}  N7b6 {[%clk 0:02:13]} 21. Nfxd5 {[%clk 0:02:16]}  Nxd5 {[%clk 0:02:12]} 22. Qd3 {[%clk 0:02:12]}  Nb4 {[%clk 0:01:50]} 23. Qb5 {[%clk 0:02:06]}  h6 {[%clk 0:01:21]} 24. Na4 {[%clk 0:01:40]}  Bf8 {[%clk 0:00:46]} 25. Nc3 {[%clk 0:01:33]}  Bc5 {[%clk 0:00:44]} 26. Bf4 {[%clk 0:01:30]}  Nd5 {[%clk 0:00:44]} 27. Be5 {[%clk 0:01:25]}  f6 {[%clk 0:00:40]} 28. Qd7 {[%clk 0:01:15]}  Re8 {[%clk 0:00:30]} 29. Nxd5 {[%clk 0:01:12]}  exd5 {[%clk 0:00:31]} 30. Bf4 {[%clk 0:01:05]}  Rxe2 {[%clk 0:00:31]} 31. b4 {[%clk 0:01:01]}  Bxb4 {[%clk 0:00:26]} 32. Rc1 {[%clk 0:01:01]}  Re8 {[%clk 0:00:22]} 33. Rc7 {[%clk 0:00:56]}  Bf8 {[%clk 0:00:19]} 34. Rb7 {[%clk 0:00:45]}  Re7 {[%clk 0:00:18]} 35. Qxd5+ {[%clk 0:00:44]}  Kh8 {[%clk 0:00:17]} 36. Rb5 {[%clk 0:00:44]}  Qxd5 {[%clk 0:00:14]} 37. Rxd5 {[%clk 0:00:45]}  Re8 {[%clk 0:00:12]} 38. Rd7 {[%clk 0:00:45]}  Kh7 {[%clk 0:00:12]} 39. h4 {[%clk 0:00:45]}  Re7 {[%clk 0:00:12]} 40. Rd8 {[%clk 0:00:45]}  Rf7 {[%clk 0:00:12]} 41. h5 {[%clk 0:00:44]}  g6 {[%clk 0:00:12]} 42. hxg6+ {[%clk 0:00:44]}  Kxg6 {[%clk 0:00:13]} 43. Kg2 {[%clk 0:00:45]}  h5 {[%clk 0:00:13]} 44. Kf3 {[%clk 0:00:45]}  Bg7 {[%clk 0:00:12]} 45. Rd5 {[%clk 0:00:44]}  Bh6 {[%clk 0:00:11]} 46. Bb8 {[%clk 0:00:40]}  Rb7 {[%clk 0:00:10]} 47. Rd8 {[%clk 0:00:40]}  Bg7 {[%clk 0:00:09]} 48. Rc8 {[%clk 0:00:40]}  Rb3+ {[%clk 0:00:09]} 49. Ke4 {[%clk 0:00:39]}  Rb7 {[%clk 0:00:10]} 50. Bd6 {[%clk 0:00:39]}  Rd7 {[%clk 0:00:08]} 51. Bc5 {[%clk 0:00:38]}  f5+ {[%clk 0:00:09]} 52. Kf3 {[%clk 0:00:38]}  Bf6 {[%clk 0:00:09]} 53. Rc6 {[%clk 0:00:38]}  Kf7 {[%clk 0:00:09]} 54. Kf4 {[%clk 0:00:37]}  Rd5 {[%clk 0:00:08]} 55. Be3 {[%clk 0:00:34]}  Kg6 {[%clk 0:00:07]} 56. Ra6 {[%clk 0:00:34]}  Kf7 {[%clk 0:00:07]} 57. Bc1 {[%clk 0:00:32]}  h4 {[%clk 0:00:07]} 58. g4 {[%clk 0:00:29]}  fxg4 {[%clk 0:00:07]} 59. Kxg4 {[%clk 0:00:30]}  Rd4+ {[%clk 0:00:07]} 60. Kh3 {[%clk 0:00:30]}  Rc4 {[%clk 0:00:08]} 61. Be3 {[%clk 0:00:30]}  Kg6 {[%clk 0:00:07]} 62. Rb6 {[%clk 0:00:27]}  Kf5 {[%clk 0:00:07]} 63. Rb5+ {[%clk 0:00:28]}  Kg6 {[%clk 0:00:08]} 64. Kg2 {[%clk 0:00:23]}  Kf7 {[%clk 0:00:07]} 65. f4 {[%clk 0:00:22]}  Rc2+ {[%clk 0:00:06]} 66. Kf3 {[%clk 0:00:22]}  h3 {[%clk 0:00:06]} 67. Rb7+ {[%clk 0:00:20]}  Kg6 {[%clk 0:00:06]} 68. Rb1 {[%clk 0:00:20]}  h2 {[%clk 0:00:06]} 69. Rh1 {[%clk 0:00:20]}  Bh4 {[%clk 0:00:05]} 70. Kg4 {[%clk 0:00:18]}  Bf2 {[%clk 0:00:04]} 71. Rxh2 {[%clk 0:00:18]}  Rc3 {[%clk 0:00:02]} 72. Bxf2 {[%clk 0:00:18]}  Rc4 {[%clk 0:00:02]} 73. Bh4 {[%clk 0:00:18]}  Rc8 {[%clk 0:00:03]} 74. Bg5 {[%clk 0:00:19]}  Rg8 {[%clk 0:00:03]} 75. Rh6+ {[%clk 0:00:18]}  Kg7 {[%clk 0:00:04]} 76. Kf5 {[%clk 0:00:19]}  Ra8 {[%clk 0:00:05]} 77. Rg6+ {[%clk 0:00:19]}  Kh7 {[%clk 0:00:05]} 78. Re6 {[%clk 0:00:19]}  Rf8+ {[%clk 0:00:05]} 79. Kg4 {[%clk 0:00:19]}  Ra8 {[%clk 0:00:06]} 80. Re7+ {[%clk 0:00:19]}  Kg8 {[%clk 0:00:06]} 81. f5 {[%clk 0:00:20]}  Ra6 {[%clk 0:00:06]} 82. Rc7 {[%clk 0:00:20]}  Rb6 {[%clk 0:00:06]} 83. f6 {[%clk 0:00:19]}  Kf8 {[%clk 0:00:04]} 84. Kf5 {[%clk 0:00:19]}  Kg8 {[%clk 0:00:04]} 85. Kg6 {[%clk 0:00:19]}  Rb8 {[%clk 0:00:04]} 86. f7+ {[%clk 0:00:18]}  Kh8 {[%clk 0:00:04]} 87. Bf6# {[%clk 0:00:18]} 1-0

[Event "December 19 Early 2023"]
[Site "https://www.chess.com"]
[Date "2023.12.19"]
[Round "5"]
[White "Dragun, Kamil"]
[Black "Shubenkova, Veronika"]
[Result "1-0"]
[Board "49"]
[TimeControl "180+1"]
[WhiteFideId "1134167"]
[BlackFideId "44124040"]
[WhiteElo "2551"]
[BlackElo "1967"]
[WhiteTeam "POL"]
[BlackTeam "RUS"]
[WhiteClock "0:00:26"]
[BlackClock "0:00:47"]

1. d4 {[%clk 0:02:54]}  d5 {[%clk 0:02:59]} 2. c4 {[%clk 0:02:54]}  e6 {[%clk 0:02:59]} 3. Nc3 {[%clk 0:02:54]}  f5 {[%clk 0:02:59]} 4. Nf3 {[%clk 0:02:48]}  Nf6 {[%clk 0:02:59]} 5. Bf4 {[%clk 0:02:41]}  c6 {[%clk 0:02:58]} 6. e3 {[%clk 0:02:41]}  Bd6 {[%clk 0:02:58]} 7. Bxd6 {[%clk 0:02:37]}  Qxd6 {[%clk 0:02:58]} 8. c5 {[%clk 0:02:35]}  Qe7 {[%clk 0:02:58]} 9. Ne5 {[%clk 0:02:35]}  Nbd7 {[%clk 0:02:58]} 10. f4 {[%clk 0:02:36]}  Nxe5 {[%clk 0:02:58]} 11. fxe5 {[%clk 0:02:35]}  Ne4 {[%clk 0:02:59]} 12. Nxe4 {[%clk 0:02:27]}  fxe4 {[%clk 0:02:59]} 13. Qh5+ {[%clk 0:02:24]}  g6 {[%clk 0:02:59]} 14. Qh6 {[%clk 0:02:23]}  Bd7 {[%clk 0:02:59]} 15. Be2 {[%clk 0:02:20]}  Rf8 {[%clk 0:02:59]} 16. Rf1 {[%clk 0:02:08]}  Rxf1+ {[%clk 0:02:58]} 17. Kxf1 {[%clk 0:02:08]}  O-O-O {[%clk 0:02:58]} 18. Kg1 {[%clk 0:02:07]}  Rf8 {[%clk 0:02:58]} 19. Rf1 {[%clk 0:02:06]}  Rxf1+ {[%clk 0:02:58]} 20. Bxf1 {[%clk 0:02:03]}  Qf7 {[%clk 0:02:56]} 21. Be2 {[%clk 0:01:58]}  Kc7 {[%clk 0:02:56]} 22. b4 {[%clk 0:01:57]}  a6 {[%clk 0:02:42]} 23. a4 {[%clk 0:01:45]}  Be8 {[%clk 0:02:42]} 24. h4 {[%clk 0:01:36]}  Kb8 {[%clk 0:02:37]} 25. g4 {[%clk 0:01:35]}  Kc7 {[%clk 0:02:37]} 26. Kg2 {[%clk 0:01:35]}  Kb8 {[%clk 0:02:36]} 27. Kg3 {[%clk 0:01:36]}  Kc7 {[%clk 0:02:36]} 28. Qg5 {[%clk 0:01:29]}  Qf8 {[%clk 0:02:27]} 29. Qf6 {[%clk 0:01:27]}  Qf7 {[%clk 0:02:22]} 30. g5 {[%clk 0:01:11]}  Kc8 {[%clk 0:02:13]} 31. Bg4 {[%clk 0:01:07]}  Kd7 {[%clk 0:02:12]} 32. Kf4 {[%clk 0:01:06]}  Qe7 {[%clk 0:02:08]} 33. Be2 {[%clk 0:00:59]}  Kd8 {[%clk 0:01:55]} 34. Kg3 {[%clk 0:00:47]}  Bd7 {[%clk 0:01:44]} 35. h5 {[%clk 0:00:46]}  Be8 {[%clk 0:01:36]} 36. h6 {[%clk 0:00:38]}  Bd7 {[%clk 0:01:24]} 37. Bg4 {[%clk 0:00:37]}  Bc8 {[%clk 0:01:13]} 38. Bh5 {[%clk 0:00:33]}  Bd7 {[%clk 0:01:01]} 39. Bxg6 {[%clk 0:00:32]}  Qxf6 {[%clk 0:00:52]} 40. exf6 {[%clk 0:00:32]}  e5 {[%clk 0:00:47]} 41. dxe5 {[%clk 0:00:26]} 1-0

[Event "December 19 Early 2023"]
[Site "https://www.chess.com"]
[Date "2023.12.19"]
[Round "5"]
[White "Smolka, Marcin"]
[Black "Suyarov, Mukhammadzokhid"]
[Result "0-1"]
[Board "50"]
[TimeControl "180+1"]
[WhiteFideId "1139681"]
[BlackFideId "14210495"]
[WhiteElo "2117"]
[BlackElo "2449"]
[WhiteTeam "POL"]
[BlackTeam "UZB"]
[WhiteClock "0:00:45"]
[BlackClock "0:02:10"]

1. e4 {[%clk 0:03:00]}  e5 {[%clk 0:02:59]} 2. Nf3 {[%clk 0:03:00]}  Nc6 {[%clk 0:03:00]} 3. Bc4 {[%clk 0:03:00]}  Bc5 {[%clk 0:03:00]} 4. b4 {[%clk 0:03:00]}  Bxb4 {[%clk 0:03:00]} 5. c3 {[%clk 0:03:01]}  Ba5 {[%clk 0:03:01]} 6. d4 {[%clk 0:02:58]}  exd4 {[%clk 0:02:49]} 7. O-O {[%clk 0:02:58]}  Nf6 {[%clk 0:02:32]} 8. e5 {[%clk 0:02:53]}  d5 {[%clk 0:02:30]} 9. exf6 {[%clk 0:02:31]}  dxc4 {[%clk 0:02:29]} 10. fxg7 {[%clk 0:02:24]}  Rg8 {[%clk 0:02:28]} 11. cxd4 {[%clk 0:02:03]}  Be6 {[%clk 0:02:25]} 12. Bg5 {[%clk 0:01:32]}  Qd5 {[%clk 0:02:24]} 13. Na3 {[%clk 0:01:00]}  Rxg7 {[%clk 0:02:19]} 14. Bf6 {[%clk 0:00:58]}  Rg8 {[%clk 0:02:17]} 15. Rc1 {[%clk 0:00:56]}  Bh3 {[%clk 0:02:14]} 16. Re1+ {[%clk 0:00:54]}  Bxe1 {[%clk 0:02:12]} 17. Qxe1+ {[%clk 0:00:45]}  Kd7 {[%clk 0:02:10]} 0-1

[Event "December 19 Early 2023"]
[Site "https://www.chess.com"]
[Date "2023.12.19"]
[Round "5"]
[White "Stepanencu, Nicodim-Cosmin"]
[Black "IM_ArthurDW08"]
[Result "1/2-1/2"]
[Board "52"]
[TimeControl "180+1"]
[WhiteFideId "1256220"]
[WhiteElo "2154"]
[BlackElo "2766"]
[WhiteTeam "ROU"]
[WhiteClock "0:00:03"]
[BlackClock "0:00:08"]

1. e4 {[%clk 0:02:56]}  e5 {[%clk 0:02:58]} 2. Bc4 {[%clk 0:02:53]}  Nf6 {[%clk 0:02:58]} 3. d3 {[%clk 0:02:52]}  c6 {[%clk 0:02:58]} 4. Bb3 {[%clk 0:02:48]}  d5 {[%clk 0:02:58]} 5. Nf3 {[%clk 0:02:47]}  Bb4+ {[%clk 0:02:57]} 6. c3 {[%clk 0:02:46]}  Bd6 {[%clk 0:02:57]} 7. Bg5 {[%clk 0:02:43]}  dxe4 {[%clk 0:02:53]} 8. dxe4 {[%clk 0:02:42]}  h6 {[%clk 0:02:53]} 9. Bh4 {[%clk 0:02:40]}  O-O {[%clk 0:02:39]} 10. O-O {[%clk 0:02:38]}  Na6 {[%clk 0:02:39]} 11. Nbd2 {[%clk 0:02:35]}  Nc5 {[%clk 0:02:38]} 12. Bc2 {[%clk 0:02:34]}  Bg4 {[%clk 0:02:16]} 13. Qe1 {[%clk 0:02:06]}  g5 {[%clk 0:01:52]} 14. Bg3 {[%clk 0:01:53]}  Qc7 {[%clk 0:01:51]} 15. h4 {[%clk 0:01:45]}  Nh7 {[%clk 0:01:31]} 16. hxg5 {[%clk 0:01:37]}  hxg5 {[%clk 0:01:32]} 17. Qe3 {[%clk 0:01:25]}  Ne6 {[%clk 0:01:27]} 18. Nc4 {[%clk 0:01:25]}  Bc5 {[%clk 0:01:20]} 19. Bxe5 {[%clk 0:00:59]}  Bxe3 {[%clk 0:01:19]} 20. Bxc7 {[%clk 0:00:59]}  Bxf2+ {[%clk 0:01:20]} 21. Rxf2 {[%clk 0:00:59]}  Nxc7 {[%clk 0:01:21]} 22. Nd6 {[%clk 0:00:50]}  Kg7 {[%clk 0:01:08]} 23. e5 {[%clk 0:00:43]}  Ne6 {[%clk 0:00:57]} 24. Nh2 {[%clk 0:00:17]}  Bh5 {[%clk 0:00:57]} 25. Nf5+ {[%clk 0:00:16]}  Kh8 {[%clk 0:00:55]} 26. Nd6 {[%clk 0:00:16]}  Bg6 {[%clk 0:00:39]} 27. Raf1 {[%clk 0:00:16]}  Bxc2 {[%clk 0:00:38]} 28. Rxc2 {[%clk 0:00:17]}  f6 {[%clk 0:00:26]} 29. Ng4 {[%clk 0:00:07]}  fxe5 {[%clk 0:00:21]} 30. Rxf8+ {[%clk 0:00:08]}  Nhxf8 {[%clk 0:00:20]} 31. Nxe5 {[%clk 0:00:08]}  Rb8 {[%clk 0:00:19]} 32. Rf2 {[%clk 0:00:07]}  c5 {[%clk 0:00:14]} 33. Rf7 {[%clk 0:00:07]}  Rd8 {[%clk 0:00:11]} 34. Ne4 {[%clk 0:00:05]}  Rd1+ {[%clk 0:00:10]} 35. Kf2 {[%clk 0:00:06]}  Rb1 {[%clk 0:00:11]} 36. b3 {[%clk 0:00:04]}  Rb2+ {[%clk 0:00:11]} 37. Kg3 {[%clk 0:00:05]}  Rxa2 {[%clk 0:00:11]} 38. Nf6 {[%clk 0:00:04]}  Nf4 {[%clk 0:00:05]} 39. Rxf8+ {[%clk 0:00:02]}  Kg7 {[%clk 0:00:06]} 40. Ned7 {[%clk 0:00:02]}  Rxg2+ {[%clk 0:00:05]} 41. Kf3 {[%clk 0:00:03]}  Rc2 {[%clk 0:00:06]} 42. Rg8+ {[%clk 0:00:03]}  Kf7 {[%clk 0:00:06]} 43. Rxg5 {[%clk 0:00:04]}  Ne6 {[%clk 0:00:06]} 44. Rh5 {[%clk 0:00:03]}  Rxc3+ {[%clk 0:00:06]} 45. Ke2 {[%clk 0:00:03]}  Nf4+ {[%clk 0:00:05]} 46. Kd2 {[%clk 0:00:04]}  Rd3+ {[%clk 0:00:05]} 47. Kc2 {[%clk 0:00:04]}  Rxd7 {[%clk 0:00:04]} 48. Rh7+ {[%clk 0:00:03]}  Kxf6 {[%clk 0:00:05]} 49. Rxd7 {[%clk 0:00:04]}  b5 {[%clk 0:00:04]} 50. Rxa7 {[%clk 0:00:04]}  Ne6 {[%clk 0:00:05]} 51. Rb7 {[%clk 0:00:03]}  Ke5 {[%clk 0:00:06]} 52. Kd3 {[%clk 0:00:02]}  c4+ {[%clk 0:00:04]} 53. bxc4 {[%clk 0:00:02]}  bxc4+ {[%clk 0:00:05]} 54. Kxc4 {[%clk 0:00:02]}  Nf4 {[%clk 0:00:06]} 55. Rb5+ {[%clk 0:00:03]}  Ke4 {[%clk 0:00:06]} 56. Rb4 {[%clk 0:00:03]}  Ke5 {[%clk 0:00:07]} 57. Kc3 {[%clk 0:00:02]}  Nd5+ {[%clk 0:00:07]} 58. Kb3 {[%clk 0:00:03]}  Nxb4 {[%clk 0:00:08]} 1/2-1/2

[Event "December 19 Early 2023"]
[Site "https://www.chess.com"]
[Date "2023.12.19"]
[Round "5"]
[White "Gabrielian, Artur"]
[Black "Farahat, Ali"]
[Result "1-0"]
[Board "54"]
[TimeControl "180+1"]
[WhiteFideId "4131002"]
[BlackFideId "10600507"]
[WhiteElo "2441"]
[BlackElo "2254"]
[WhiteTeam "RUS"]
[BlackTeam "USA"]
[WhiteClock "0:00:30"]
[BlackClock "0:00:00"]

1. e4 {[%clk 0:03:00]}  e5 {[%clk 0:02:59]} 2. Nf3 {[%clk 0:03:00]}  Nc6 {[%clk 0:03:00]} 3. Bc4 {[%clk 0:02:59]}  Bc5 {[%clk 0:02:59]} 4. d3 {[%clk 0:02:59]}  Nf6 {[%clk 0:02:59]} 5. Bg5 {[%clk 0:02:59]}  h6 {[%clk 0:02:55]} 6. Bh4 {[%clk 0:02:59]}  d6 {[%clk 0:02:56]} 7. c3 {[%clk 0:02:58]}  a6 {[%clk 0:02:54]} 8. a4 {[%clk 0:02:56]}  Ba7 {[%clk 0:02:53]} 9. Nbd2 {[%clk 0:02:56]}  Be6 {[%clk 0:02:49]} 10. b4 {[%clk 0:02:55]}  Qd7 {[%clk 0:02:40]} 11. b5 {[%clk 0:02:50]}  Ne7 {[%clk 0:02:31]} 12. Bxf6 {[%clk 0:02:45]}  gxf6 {[%clk 0:02:32]} 13. bxa6 {[%clk 0:02:44]}  bxa6 {[%clk 0:02:32]} 14. O-O {[%clk 0:02:35]}  Rg8 {[%clk 0:02:31]} 15. Kh1 {[%clk 0:02:34]}  f5 {[%clk 0:02:24]} 16. exf5 {[%clk 0:02:24]}  Bxc4 {[%clk 0:02:23]} 17. Nxc4 {[%clk 0:02:09]}  Qxf5 {[%clk 0:02:23]} 18. g3 {[%clk 0:02:08]}  Ng6 {[%clk 0:02:14]} 19. Ne3 {[%clk 0:02:05]}  Qh3 {[%clk 0:02:09]} 20. Ng1 {[%clk 0:02:04]}  Qd7 {[%clk 0:01:59]} 21. d4 {[%clk 0:02:05]}  exd4 {[%clk 0:01:56]} 22. cxd4 {[%clk 0:02:04]}  Kf8 {[%clk 0:01:57]} 23. Rc1 {[%clk 0:02:01]}  Re8 {[%clk 0:01:56]} 24. Qd3 {[%clk 0:01:56]}  h5 {[%clk 0:01:36]} 25. Nd5 {[%clk 0:01:35]}  Qxa4 {[%clk 0:01:11]} 26. Nf6 {[%clk 0:01:15]}  Qxd4 {[%clk 0:01:08]} 27. Qxd4 {[%clk 0:01:14]}  Bxd4 {[%clk 0:01:09]} 28. Nxe8 {[%clk 0:01:14]}  Kxe8 {[%clk 0:01:05]} 29. Rxc7 {[%clk 0:01:14]}  Kd8 {[%clk 0:00:52]} 30. Rfc1 {[%clk 0:01:11]}  Bc5 {[%clk 0:00:50]} 31. Rxf7 {[%clk 0:01:09]}  Ne5 {[%clk 0:00:50]} 32. Rf5 {[%clk 0:01:08]}  Nd3 {[%clk 0:00:47]} 33. Rf1 {[%clk 0:01:06]}  Kc7 {[%clk 0:00:45]} 34. Ne2 {[%clk 0:01:00]}  h4 {[%clk 0:00:44]} 35. Kg2 {[%clk 0:00:59]}  Rh8 {[%clk 0:00:43]} 36. h3 {[%clk 0:00:46]}  hxg3 {[%clk 0:00:42]} 37. fxg3 {[%clk 0:00:46]}  a5 {[%clk 0:00:40]} 38. Nc3 {[%clk 0:00:44]}  Rb8 {[%clk 0:00:36]} 39. h4 {[%clk 0:00:42]}  Rb3 {[%clk 0:00:35]} 40. Nd5+ {[%clk 0:00:41]}  Kc6 {[%clk 0:00:35]} 41. h5 {[%clk 0:00:42]}  Rb2+ {[%clk 0:00:35]} 42. Kh3 {[%clk 0:00:40]}  Ne5 {[%clk 0:00:35]} 43. Ne7+ {[%clk 0:00:38]}  Kd7 {[%clk 0:00:35]} 44. Ng6 {[%clk 0:00:38]}  Nd3 {[%clk 0:00:22]} 45. h6 {[%clk 0:00:37]}  Nf2+ {[%clk 0:00:22]} 46. R1xf2 {[%clk 0:00:36]}  Bxf2 {[%clk 0:00:22]} 47. Rxf2 {[%clk 0:00:31]}  Rxf2 {[%clk 0:00:21]} 48. h7 {[%clk 0:00:31]}  Rf1 {[%clk 0:00:00]} 49. Kg2 {[%clk 0:00:30]} 1-0

[Event "December 19 Early 2023"]
[Site "https://www.chess.com"]
[Date "2023.12.19"]
[Round "5"]
[White "Martinez Reyes, Pedro Ramon"]
[Black "Javakhadze, Zurab"]
[Result "1-0"]
[Board "57"]
[TimeControl "180+1"]
[WhiteFideId "3901807"]
[BlackFideId "13603647"]
[WhiteElo "2327"]
[BlackElo "2374"]
[WhiteTeam "VEN"]
[BlackTeam "GEO"]
[WhiteClock "0:00:17"]
[BlackClock "0:00:06"]

1. Nf3 {[%clk 0:02:54]}  d5 {[%clk 0:02:59]} 2. g3 {[%clk 0:02:54]}  Nf6 {[%clk 0:03:00]} 3. Bg2 {[%clk 0:02:54]}  c6 {[%clk 0:02:55]} 4. O-O {[%clk 0:02:54]}  Bf5 {[%clk 0:02:55]} 5. d3 {[%clk 0:02:54]}  h6 {[%clk 0:02:52]} 6. Nbd2 {[%clk 0:02:53]}  e6 {[%clk 0:02:48]} 7. b3 {[%clk 0:02:53]}  Be7 {[%clk 0:02:45]} 8. Bb2 {[%clk 0:02:52]}  O-O {[%clk 0:02:46]} 9. Qe1 {[%clk 0:02:51]}  a5 {[%clk 0:02:45]} 10. e4 {[%clk 0:02:48]}  Bh7 {[%clk 0:02:45]} 11. a3 {[%clk 0:02:45]}  c5 {[%clk 0:02:37]} 12. Ne5 {[%clk 0:02:43]}  a4 {[%clk 0:02:31]} 13. Qe2 {[%clk 0:02:40]}  axb3 {[%clk 0:02:24]} 14. cxb3 {[%clk 0:02:41]}  Ra6 {[%clk 0:02:00]} 15. f4 {[%clk 0:02:30]}  d4 {[%clk 0:01:13]} 16. g4 {[%clk 0:02:23]}  Nfd7 {[%clk 0:01:12]} 17. Nef3 {[%clk 0:02:17]}  f5 {[%clk 0:01:10]} 18. h3 {[%clk 0:02:00]}  Nf6 {[%clk 0:00:52]} 19. Ne5 {[%clk 0:01:56]}  Nbd7 {[%clk 0:00:50]} 20. Rae1 {[%clk 0:01:49]}  fxe4 {[%clk 0:00:39]} 21. Nxe4 {[%clk 0:01:46]}  Nxe5 {[%clk 0:00:38]} 22. fxe5 {[%clk 0:01:44]}  Nd5 {[%clk 0:00:34]} 23. Rxf8+ {[%clk 0:01:33]}  Qxf8 {[%clk 0:00:34]} 24. Rf1 {[%clk 0:01:31]}  Qd8 {[%clk 0:00:30]} 25. Bc1 {[%clk 0:01:24]}  Ra8 {[%clk 0:00:23]} 26. Qf3 {[%clk 0:01:12]}  Bg6 {[%clk 0:00:23]} 27. a4 {[%clk 0:00:48]}  Qb6 {[%clk 0:00:18]} 28. Qd1 {[%clk 0:00:44]}  Qc7 {[%clk 0:00:17]} 29. g5 {[%clk 0:00:40]}  h5 {[%clk 0:00:13]} 30. Nf6+ {[%clk 0:00:36]}  gxf6 {[%clk 0:00:09]} 31. gxf6 {[%clk 0:00:37]}  Bf8 {[%clk 0:00:05]} 32. Qe2 {[%clk 0:00:31]}  Qf7 {[%clk 0:00:02]} 33. Bxd5 {[%clk 0:00:30]}  exd5 {[%clk 0:00:02]} 34. e6 {[%clk 0:00:31]}  Qc7 {[%clk 0:00:02]} 35. Bf4 {[%clk 0:00:31]}  Bd6 {[%clk 0:00:02]} 36. f7+ {[%clk 0:00:27]}  Kg7 {[%clk 0:00:02]} 37. Bg5 {[%clk 0:00:18]}  Be5 {[%clk 0:00:01]} 38. Qf3 {[%clk 0:00:16]}  Qd6 {[%clk 0:00:01]} 39. e7 {[%clk 0:00:16]}  Bxf7 {[%clk 0:00:01]} 40. Qxf7+ {[%clk 0:00:16]}  Kh8 {[%clk 0:00:01]} 41. e8=Q+ {[%clk 0:00:17]}  Rxe8 {[%clk 0:00:01]} 42. Qxe8+ {[%clk 0:00:18]}  Kg7 {[%clk 0:00:02]} 43. Rf7+ {[%clk 0:00:17]}  Kg6 {[%clk 0:00:03]} 44. Rd7+ {[%clk 0:00:17]}  Kxg5 {[%clk 0:00:04]} 45. Rxd6 {[%clk 0:00:17]}  Bxd6 {[%clk 0:00:05]} 46. Qe6 {[%clk 0:00:17]}  Bf4 {[%clk 0:00:05]} 47. Qxd5+ {[%clk 0:00:17]}  Kh4 {[%clk 0:00:06]} 48. Qxc5 {[%clk 0:00:17]}  Kg3 {[%clk 0:00:07]} 49. Qd5 {[%clk 0:00:17]}  Be3+ {[%clk 0:00:07]} 50. Kf1 {[%clk 0:00:17]}  b6 {[%clk 0:00:06]} 51. Qg2+ {[%clk 0:00:17]} 1-0